Cogmind - Beta 13 @@@ ROGUE MODE // 2024.04.05 @ 16:55:46 Player: gabr Result: Destroyed by G-34 Mercenary with Small Laser Performance ------------- Evolutions (0) 0 Regions Visited (1) 200 Robots Destroyed (5) 25 Value Destroyed (98) 98 Prototype IDs (0) 0 Alien Tech Used (0) 0 Bonus (0) 0 TOTAL SCORE: 323 Bonus ------- None Cogmind --------- Core Integrity 0/250 Matter 285/300 Energy 68/100 System Corruption 0% Temperature Hot (297) Movement Core (400) Ox7 Location -10/Materials Parts ------- > --- POWER (1) -------- (None) > --- PROPULSION (2) --- (None) > --- UTILITY (2) ------ Large Storage Unit > --- WEAPON (2) ------- Small Laser Small Laser > --- INVENTORY (15) --- Light Ion Engine Light Treads Light Treads Aluminum Leg Wheel Compact Wheel Large Storage Unit Light Armor Plating Tractor Beam Peak State ------------ > --- POWER ------------ Light Ion Engine > --- PROPULSION ------- Aluminum Leg Aluminum Leg > --- UTILITY ---------- Large Storage Unit Light Armor Plating > --- WEAPON ----------- Small Laser Light Assault Rifle > --- INVENTORY -------- Light Ion Engine Light Treads Light Treads Aluminum Leg Wheel Compact Wheel Large Storage Unit Light Armor Plating Tractor Beam Small Laser [Rating: 8] Favorites ----------- Power Light Ion Engine Engine Light Ion Engine Propulsion Aluminum Leg Leg Aluminum Leg Utility Small Storage Unit Device Tractor Beam Storage Small Storage Unit Protection Light Armor Plating Weapon Small Laser Energy Gun Small Laser Ballistic Gun Light Assault Rifle Build | -11 -10 ------- Run | Yrd Mat Slots Evolved . | . . Power . | . . Propulsion . | . . Utility . | . . Weapon . | . . Parts Attached 11 | 7 4 Power 1 | 1 . Engine 1 | 1 . Core . | . . Reactor . | . . Propulsion 3 | 2 1 Treads . | . . Leg 3 | 2 1 Wheel . | . . Hover . | . . Flight . | . . Utility 4 | 2 2 Device 1 | 1 . Storage 2 | 1 1 Processor . | . . Hackware . | . . Protection 1 | . 1 Artifact . | . . Weapon 3 | 2 1 Energy Gun 2 | 1 1 Energy Cannon . | . . Ballistic Gun 1 | 1 . Ballistic Cannon . | . . Launcher . | . . Special Weapon . | . . Impact Weapon . | . . Slashing Weapon . | . . Piercing Weapon . | . . Special Melee Weapon . | . . Unidentified Prototypes . | . . Parts Lost 5 | . 5 Power 1 | . 1 Propulsion 2 | . 2 Utility 1 | . 1 Weapon 1 | . 1 Highest Loss Streak 5 | . 5 To Critical Strikes . | . . Average Slot Usage (%) 95 | . 95 Engine 13 | . 13 Leg 25 | . 25 Device 3 | . 3 Storage 14 | . 14 Protection 8 | . 8 Energy Gun 14 | . 14 Ballistic Gun 13 | . 13 Naked Turns . | . . Heaviest Build 28 | 11 28 Greatest Support 20 | 20 20 Greatest Overweight (x) 1 | . 1 Average Overweight (x) . | . . Largest Inventory Capacity 15 | 8 15 Average Capacity 9 | 7 10 Most Carried 10 | 6 10 Average Carried 6 | 3 7 Final Capacity 15 | 8 15 Final Carried 9 | 6 9 Class Distribution -------------------- 100% | Mutant Dominant Class ---------------- Mutant | -10/Materials Resources | -11 -10 ----------- Run | Yrd Mat Matter Collected 284 | 240 44 Remotely 137 | 137 . Salvage Created 199 | 50 149 Parts 12 | 1 11 Haulers Intercepted . | . . Recyclers Shooed . | . . Parts Field Recycled . | . . Retrieved Matter . | . . Parts Self-Destructed . | . . Prevented . | . . Kills | -11 -10 ------- Run | Yrd Mat Combat Hostiles Destroyed 3 | . 3 Guns 3 | . 3 Classes Destroyed 4 | 1 3 Worker 1 | . 1 Recycler 1 | 1 . Swarmer 1 | . 1 Grunt 2 | . 2 Best Kill Streak 3 | 1 3 Combat Bots Only 2 | . 2 Max Kills in Single Turn 2 | 1 2 Gunslinging . | . . Exploded . | . . Melee . | . . Uniques/NPCs Destroyed . | . . Combat | -11 -10 -------- Run | Yrd Mat Hostile Shots Fired 80 | . 80 Missed 14 | . 14 Damage Taken 794 | . 794 Core 261 | . 261 Absorbed by Shields . | . . Core Remaining (%) 100 | 100 . Volleys Fired 18 | 3 15 Largest 2 | 2 2 Hottest 80 | 60 80 Shots Fired 34 | 6 28 Gun 34 | 6 28 Cannon . | . . Launcher . | . . Special . | . . Kinetic 14 | 3 11 Thermal 20 | 3 17 Explosive . | . . Electromagnetic . | . . Robot Hit Streak 5 | 2 5 Robot Miss Streak 3 | 2 3 Penetration Max . | . . Secondary Targets 2 | . 2 Max Gunslinging Chain 1 | . 1 Shots Hit Robots 20 | 3 17 Core Hits 11 | 2 9 Critical Kills . | . . Critical Parts Destroyed . | . . Critical Strikes . | . . Melee Attacks . | . . Impact . | . . Slashing . | . . Piercing . | . . Sneak Attacks . | . . Combat Hostiles . | . . Follow-up Attacks . | . . Damage Inflicted 234 | 29 205 Guns 234 | 29 205 Cannons . | . . Explosions . | . . Melee . | . . Ramming . | . . Kinetic 56 | 6 50 Thermal 178 | 23 155 Explosive . | . . Electromagnetic . | . . Impact . | . . Slashing . | . . Piercing . | . . Highest Corruption . | . . Average Corruption . | . . Corruption Purged . | . . Corruption Blocked . | . . Overload Shots . | . . Overflow Damage . | . . Projectiles . | . . Explosions . | . . Melee . | . . Knockbacks . | . . Impact . | . . Kinetic . | . . Secondary . | . . Self-Inflicted Damage . | . . Shots . | . . Rammed . | . . Targets Rammed . | . . Kicked . | . . Crushed . | . . Highest Temperature 285 | 20 285 Average Temperature 106 | 15 117 Received Heat Transfer 456 | . 456 Siege Activations . | . . Robots Corrupted . | . . Combat Hostiles . | . . Parts Fried . | . . Impact Corruptions . | . . Robots Melted . | . . Combat Hostiles . | . . Parts Melted . | . . Heat Transferred 400 | 50 350 Parts Sabotaged . | . . Parts Stolen . | . . Parts Stripped . | . . Power Chain Reactions . | . . Alert | -11 -10 ------- Run | Yrd Mat Peak Influence 93 | 5 93 Initial 3 | . 3 Average 27 | 1 39 Maximum Alert Level . | . . Low Security (%) 100 | 100 100 Level 1 . | . . Level 2 . | . . Level 3 . | . . Level 4 . | . . Level 5 . | . . High Security . | . . Max Security . | . . Squads Dispatched 3 | . 3 Investigation 1 | . 1 Extermination . | . . Reinforcement 2 | . 2 Assault . | . . Garrison . | . . Intercept . | . . Searches Triggered . | . . Construction Impeded . | . . Haulers Reinforced . | . . Active Scanning Responses . | . . Cargo Convoy Interrupts . | . . Stealth | -11 -10 --------- Run | Yrd Mat Distress Signals 1 | . 1 Communications Jammed . | . . Distress Signals . | . . Times Spotted 14 | . 14 Peak Tracking Total 8 | . 8 Tactical Retreats . | . . Traps | -11 -10 ------- Run | Yrd Mat Traps Triggered 1 | . 1 Indirectly . | . . Trap Hack Attempts . | . . Triggered . | . . Disarmed . | . . Reprogrammed . | . . Reused . | . . Traps Extracted . | . . Installed . | . . Triggered . | . . Machines | -11 -10 ---------- Run | Yrd Mat Machines Disabled . | . . Max in Single Turn . | . . Machines Repaired . | . . Machines Dismantled . | . . Machines Sabotaged . | . . Overloaded Fab Kills . | . . Hacking | -11 -10 --------- Run | Yrd Mat Machines Accessed . | . . Terminals . | . . Fabricators . | . . Repair Stations . | . . Recycling Units . | . . Scanalyzers . | . . Garrison Access . | . . Total Hacks . | . . Successful . | . . Failed . | . . Catastrophic . | . . Database Lockouts . | . . Manual . | . . Terminals . | . . Fabricators . | . . Repair Stations . | . . Recycling Units . | . . Scanalyzers . | . . Garrison Access . | . . Terminal Hacks . | . . Fabricator Hacks . | . . Repair Station Hacks . | . . Recycling Unit Hacks . | . . Scanalyzer . | . . Garrison Access Hacks . | . . Unauthorized Hacks . | . . Terminals . | . . Fabricators . | . . Repair Stations . | . . Recycling Units . | . . Scanalyzers . | . . Garrison Access . | . . Data Cores Recovered . | . . Used . | . . Hacking Detections . | . . Full Trace Events . | . . Feedback Events . | . . Feedback Blocked . | . . Robot Schematics Acquired . | . . Robots Built . | . . Authchips . | . . Time . | . . Total Robot Build Rating . | . . Part Schematics Acquired . | . . Parts Built . | . . Authchips . | . . Time . | . . Total Part Build Rating . | . . Parts Repaired . | . . Time . | . . Parts Recycled . | . . Recycled Matter . | . . Retrieved Matter . | . . Retrieved Components . | . . Parts Scanalyzed . | . . Part Schematics Acquired . | . . Parts Damaged . | . . Bothacking | -11 -10 ------------ Run | Yrd Mat Used RIF Installer . | . . Robots Hacked . | . . Non-combat . | . . Combat . | . . Robot Hacks Applied . | . . Relay Couplers Released . | . . Fabnet Peak Effective % . | . . Robots Rewired . | . . Allies Hacked . | . . Hacks Repelled . | . . Allies | -11 -10 -------- Run | Yrd Mat Total Allies . | . . Largest Group . | . . Highest-Rated Group . | . . Highest-Rated Ally . | . . Total Orders . | . . Ally Attacks . | . . Total Damage . | . . Kills . | . . Allies Corrupted . | . . Allies Melted . | . . Intel | -11 -10 ------- Run | Yrd Mat Robot Analysis Total . | . . Derelict Logs Recovered . | . . Drone Launches . | . . Drone Recoveries . | . . Exploration | -11 -10 ------------- Run | Yrd Mat Turns Passed 262 | 82 180 Spaces Moved 152 | 49 103 Core 2 | 2 . Treads . | . . Legs 150 | 47 103 Wheels . | . . Hover . | . . Flight . | . . Fastest Speed 50 | 50 120 Average Speed 125 | 117 128 Slowest Speed 190 | 120 190 Overloaded Moves . | . . Propulsion Burnouts . | . . Robots Hopped . | . . Cave-ins Triggered . | . . Exploration Rate (%) 11 | 4 19 Regions Visited 1 Branch Regions . Pre-discovered Areas . | . . Known Exits Taken . | . . Unknown Exits Taken 1 | 1 . Scrap Searched . | . . Spaces Dug . | . . Terrain Destroyed . | . . Melee . | . . Projectile . | . . AOE . | . . Terrain Rammed . | . . Walls Destroyed . | . . Machines Disabled . | . . Actions | -11 -10 --------- Run | Yrd Mat Total 191 | 64 127 Wait 1 | . 1 Move 151 | 48 103 Hop . | . . Pick Up 8 | 6 2 Fast Attach 8 | 7 1 Attach 1 | . 1 Detach 1 | . 1 Swap 2 | . 2 Drop 1 | . 1 Fire 18 | 3 15 Melee . | . . Ram . | . . Kick . | . . Crush . | . . Escape Stasis . | . . Rewire . | . . Trap . | . . Miscellaneous . | . . Route ------- -11/Scrapyard -10/Materials (discovered 1 exit: [*Min]) History --------- Turn | Location | Event 43 | -11/Scrapyard | Discovered new exit (range 16) 83 | -11/Scrapyard | Entered Materials 170 | -10/Materials | Discovered new exit (range 10) 251 | -10/Materials | Core integrity fell below 50% 260 | -10/Materials | Core integrity fell below 20% 263 | -10/Materials | Destroyed by G-34 Mercenary with Small Laser Last Messages --------------- 00221_ K-01 Serf collects debris. 00224_ U-05 Engineer destroyed. 00224_ R-06 Scavenger collects Wheel. 00225_ G-34 Mercenary destroyed. 00225_ Switching to secondary target: G-47 Trooper. 00225_ K-01 Serf destroyed. 00226_ R-06 Scavenger collects Sml. Storage Unit. 00227_ R-06 Scavenger collects Aluminum Leg. 00228_ Critical hit (Burn: +37). 00234_ R-06 Scavenger collects Wheel. 00238_ R-06 Scavenger collects Lgt. Ion Engine. 00238_ Critical hit (Burn: +37). 00240_ Lgt. Armor Plating destroyed. 00248_ Aluminum Leg destroyed. 00252_ G-47 Trooper destroyed. 00253_ Lgt. Assault Rifle destroyed. 00255_ M-13 Machinist repairs G-34 Mercenary. 00258_ Lgt. Ion Engine destroyed. 00260_ R-06 Scavenger collects Structural Scanner. 00263_ R-06 Scavenger collects Heat Sink. Map ----- +----------------------------------------------------+ | ?????????????????????????????????????????????????? | | ?????????????????????????????????????????????????? | | ?????????????????????????????????????????????????? | | ?????????????????????????????????????????????????? | | ?????????????????????????????????????????????????? | | ?????????????????????????????????????????????????? | | ?????????????????????????????????????????????????? | | ?????????????????????????????????????????????????? | | ???????????????????????????????????? "???????????? | | ??????????????????????????????????? ""??????????? | | ?????????????????????????????????? """?????????? | | ????????????????#####?############! ????????? | | ????????????????? # ????????? | | ???????????????????"" # % ???????? | | ????????????????????? g !!! ????????? | | ??????????????????????# !! ##+???????????????? | | ??????????????????????# ! #?????????????????? | | ??????????????????????#g #?????????????????? | | ??????????????????????# #?????????????????? | | ??????????????????????# #???????#######???? | | ??????????????????????# mw######???????# ##### | | ?????????????????????## w####?????????# | | ?????????????????????# gg """#?????????# | | ?????????????????????# % g "#?????????# | | ?????????????????????# r%*g|"#?????????# ###+# | | ?????????????????????# <@ ""#?????????##### # | | ?????????????????????# |"#?????????????# # """ | | ?????????????????????# "#?????????????# # "R" | | ?????????????????????# """#?????????????# # " " | | ?????????????????????## ####?????????????# # | | ?????????? ##### ### ######???????????# # | | ?????????? % ############# ##### | | ????????????????## | | ?????????????????# | | ?????????????????#######+## " """"" | | ??????????????????????????# """"""""" ##+##### | | ??????????????????????????# """ """ #??????? | | ??????????????????????????# #??????? | | ??????????????????????????# #??????? | | ??????????????????????????#"" ! #??????? | | ??????????????????????????#"T % [= #??????? | | ??????????????????????????#"" ! == ######?? | | ??????????????????????????# #?? | | ??????????????????????????# #?? | | ??????????????????????????### ######### #?? | | ????????????????????????????#+#???????###### #?? | | ???????????????????????????????????????????? #?? | | ????????????????????????????????????????????? #? | | ????????????????????????????????????????????? # | | ?????????????????????????????????????????????? # | +----------------------------------------------------+ Best States ------------- Heat Dissipation 25 Energy Generation 10 Energy Capacity 125 Matter Stores 300 Matter Capacity 300 Sight Range 16 Terrain Scan Density 10 Armor Coverage 150 Evasion (%) 55 Item Schematics ----------------- None Robot Schematics ------------------ None Fabricated ------------ Nothing Alien Tech Used ----------------- None Achievements -------------- None Challenges ------------ None Game ------ Seed SensorHugeMachine Manual? 0 Play Time 00:03:16 Cumulative 48.1 hours Start 2024.04.05 @ 16:53:38 End 2024.04.05 @ 16:55:46 Sessions 1 Manual Loads 0 Difficulty Rogue Special Mode None Game No. 111 Rogue 111 Adventurer 0 Explorer 0 Win Type - Total 0 Types 0/0/0/0/0/0/0/0/0 Lore% 21 Gallery% 35 Achievement% 26 Wizard Run 0 Options --------- Layout 0 ASCII 0 Keyboard 1 Movement Numpad Keybinds 0 Fullscreen 1 Font 24/Terminus Map View 76x50 Zoom Use 0% Tactical HUD 1 Map Filters NONE Filters NONE Steam 1 RUN: edb545a9-deed-4a62-98d0-a130fc46f21a